fUSD/lending_fUSD_20251123
["ID","MTS","AMOUNT","RATE_DAILY","PERIOD"]
[394740250,1763922659143,-750.11,0.0003863,8]
[394740251,1763922659153,-500.0,0.0003863,8]
[394740252,1763922659163,-500.0,0.0003863,8]
[394740253,1763922659173,-500.0,0.0003863,8]
[394740254,1763922659183,-316.02223346,0.0003863,8]
[394740255,1763922659192,-500.0,0.0003863,8]
[394740256,1763922659204,-585.64,0.0003863,8]
[394740257,1763922659216,-500.0,0.0003863,8]
[394740258,1763922659226,-151.0,0.0003863,120]
[394740259,1763922659236,-500.0,0.0003863,8]
[394740260,1763922659248,-500.0,0.0003863,8]
[394740261,1763922659257,-500.0,0.0003863,8]
[394740262,1763922659268,-500.0,0.0003863,8]
[394740263,1763922659278,-500.0,0.0003863,8]
[394740264,1763922659291,-500.0,0.0003863,8]
[394740265,1763922659301,-681.35,0.0003863,8]
[394740266,1763922659309,-500.0,0.0003863,8]
[394740267,1763922659319,-500.0,0.0003863,8]
[394740268,1763922659328,-703.85,0.0003863,8]
[394740269,1763922659337,-500.0,0.0003863,8]
[394740270,1763922659346,-500.0,0.0003863,8]
[394740271,1763922659357,-500.0,0.0003863,8]
[394740272,1763922659367,-500.0,0.0003863,8]
[394740273,1763922659377,-500.0,0.0003863,8]
[394740274,1763922659387,-500.0,0.0003863,8]
[394740275,1763922659397,-500.0,0.0003863,8]
[394740276,1763922659407,-500.0,0.0003863,8]
[394740277,1763922659416,-500.0,0.0003863,8]
[394740278,1763922659426,-765.51,0.0003863,8]
[394740279,1763922659435,-161.290659,0.0003863,120]
[394740280,1763922659445,-500.0,0.0003863,8]
[394740281,1763922659454,-500.0,0.0003863,8]
[394740282,1763922659464,-611.71,0.0003863,8]
[394740283,1763922659473,-721.89,0.0003863,8]
[394740284,1763922659483,-500.0,0.0003863,8]
[394740285,1763922659492,-500.0,0.0003863,8]
[394740286,1763922659507,-680.17,0.0003863,8]
[394740287,1763922659517,-500.0,0.0003863,8]
[394740288,1763922659527,-1044.93,0.0003863,8]
[394740289,1763922659537,-500.0,0.0003863,8]
[394740290,1763922659547,-613.65,0.0003863,8]
[394740291,1763922659557,-533.12,0.0003863,8]
[394740292,1763922659567,-532.11,0.0003863,8]
[394740293,1763922659577,-153.343202,0.0003863,120]
[394740294,1763922659586,-643.32,0.0003863,8]
[394740295,1763922659595,-500.0,0.0003863,8]
[394740296,1763922659605,-500.0,0.0003863,8]
[394740297,1763922659615,-500.0,0.0003863,8]
[394740298,1763922659625,-500.0,0.0003863,8]
[394740299,1763922659635,-500.0,0.0003863,8]
[394740300,1763922659646,-500.0,0.0003863,8]
[394740301,1763922659656,-618.29,0.0003863,8]
[394740302,1763922659666,-669.15,0.0003863,8]
[394740303,1763922659676,-500.0,0.0003863,8]
[394740304,1763922659686,-567.98,0.0003863,30]
[394740305,1763922659696,-500.0,0.0003863,8]
[394740306,1763922659705,-500.0,0.0003863,8]
[394740307,1763922659715,-500.0,0.0003863,8]
[394740308,1763922659724,-500.0,0.0003863,8]
[394740309,1763922659734,-696.36,0.0003863,8]
[394740310,1763922659744,-288.67727294,0.0003863,8]
[394740311,1763922659753,-500.0,0.0003863,8]
[394740312,1763922659763,-500.0,0.0003863,8]
[394740313,1763922659773,-542.25935123,0.0003863,8]
[394740314,1763922659782,-500.0,0.0003863,8]
[394740315,1763922659792,-524.89,0.0003863,8]
[394740316,1763922659801,-500.0,0.0003863,8]
[394740317,1763922659811,-882.24,0.0003863,8]
[394740318,1763922659821,-590.48,0.0003863,8]
[394740319,1763922659830,-500.0,0.0003863,8]
[394740320,1763922659841,-154.784611,0.0003863,120]
[394740321,1763922659850,-500.0,0.0003863,8]
[394740322,1763922659865,-679.14,0.0003863,8]
[394740323,1763922659874,-500.0,0.0003863,8]
[394740324,1763922659884,-638.37099735,0.0003863,8]
[394740325,1763922659894,-500.0,0.0003863,8]
[394740326,1763922659904,-500.0,0.0003863,8]
[394740327,1763922659914,-500.0,0.0003863,8]
[394740328,1763922659924,-538.84,0.0003863,8]
[394740329,1763922659934,-709.31,0.0003863,2]
[394740330,1763922659945,-500.0,0.0003863,8]
[394740331,1763922659955,-500.0,0.0003863,8]
[394740332,1763922659966,-500.0,0.0003863,8]
[394740333,1763922659976,-500.0,0.0003863,8]
[394740334,1763922659986,-500.0,0.0003863,8]
[394740335,1763922659997,-583.04,0.0003863,8]
[394740336,1763922660006,-500.0,0.0003863,8]
[394740337,1763922660016,-500.0,0.0003863,8]
[394740338,1763922660026,-500.0,0.0003863,8]
[394740339,1763922660036,-579.35,0.0003863,8]
[394740340,1763922660047,-151.0,0.0003863,10]
[394740341,1763922660057,-633.25,0.0003863,8]
[394740342,1763922660068,-500.0,0.0003863,8]
[394740343,1763922660078,-550.09,0.0003863,8]
[394740344,1763922660088,-552.54,0.0003863,8]
[394740345,1763922660099,-500.0,0.0003863,8]
[394740346,1763922660108,-500.0,0.0003863,8]
[394740347,1763922660119,-725.19,0.0003863,8]
[394740348,1763922660129,-500.0,0.0003863,8]
[394740349,1763922660139,-500.0,0.0003863,8]
[394740350,1763922660149,-500.0,0.0003863,8]
[394740351,1763922660160,-500.0,0.0003863,8]
[394740352,1763922660170,-522.32,0.0003863,8]
[394740353,1763922660180,-506.09,0.0003863,8]
[394740354,1763922660190,-500.0,0.0003863,8]
[394740355,1763922660201,-500.0,0.0003863,8]
[394740356,1763922660215,-267.35916519,0.0003863,8]
[394740357,1763922660229,-503.02177839,0.0003863,8]
[394740358,1763922660240,-500.0,0.0003863,8]
[394740359,1763922660251,-500.0,0.0003863,8]
[394740360,1763922660261,-520.23,0.0003863,8]
[394740361,1763922660271,-540.65,0.0003863,8]
[394740362,1763922660281,-500.0,0.0003863,8]
[394740363,1763922660292,-500.0,0.0003863,8]
[394740364,1763922660302,-214.56524991,0.0003863,8]
[394740365,1763922660312,-500.0,0.0003863,8]
[394740366,1763922660322,-500.0,0.0003863,8]
[394740367,1763922660332,-500.0,0.0003863,8]
[394740368,1763922660342,-500.0,0.0003863,8]
[394740369,1763922660352,-500.0,0.0003863,8]
[394740370,1763922660362,-826.23,0.0003863,8]
[394740371,1763922660372,-619.11,0.0003863,8]
[394740372,1763922660382,-151.0,0.0003863,120]
[394740373,1763922660391,-500.0,0.0003863,8]
[394740374,1763922660401,-500.0,0.0003863,8]
[394740375,1763922660411,-151.0,0.0003863,120]
[394740376,1763922660425,-500.0,0.0003863,8]
[394740377,1763922660436,-500.0,0.0003863,8]
[394740378,1763922660446,-500.0,0.0003863,8]
[394740379,1763922660456,-500.0,0.0003863,8]
[394740380,1763922660466,-151.0,0.0003863,120]
[394740381,1763922660477,-500.0,0.0003863,8]
[394740382,1763922660486,-500.0,0.0003863,8]
[394740383,1763922660496,-570.43,0.0003863,8]
[394740384,1763922660505,-562.29,0.0003863,8]
[394740385,1763922660515,-151.0,0.0003863,120]
[394740386,1763922660525,-500.0,0.0003863,8]
[394740387,1763922660536,-151.0,0.0003863,120]
[394740388,1763922660545,-500.0,0.0003863,8]
[394740389,1763922660555,-217.004398,0.0003863,120]
[394740390,1763922660564,-500.0,0.0003863,8]
[394740391,1763922660574,-613.31,0.0003863,8]
[394740392,1763922660584,-500.0,0.0003863,8]
[394740393,1763922660594,-500.0,0.0003863,8]
[394740394,1763922660604,-500.0,0.0003863,8]
[394740395,1763922660614,-500.0,0.0003863,8]
[394740396,1763922660623,-500.0,0.0003863,8]
[394740397,1763922660633,-803.58,0.0003863,8]
[394740398,1763922660643,-500.0,0.0003863,8]
[394740399,1763922660741,-500.0,0.0003863,8]
[394740400,1763922660750,-500.0,0.0003863,8]
[394740401,1763922660761,-500.0,0.0003863,8]
[394740402,1763922660771,-500.0,0.0003863,8]
[394740403,1763922660781,-500.0,0.0003863,8]
[394740404,1763922660790,-942.25,0.0003863,8]
[394740405,1763922660799,-500.0,0.0003863,8]
[394740406,1763922660808,-500.0,0.0003863,8]
[394740407,1763922660817,-541.61,0.0003863,8]
[394740408,1763922660827,-500.0,0.0003863,8]
[394740409,1763922660835,-500.0,0.0003863,8]
[394740410,1763922660844,-500.0,0.0003863,8]
[394740411,1763922660855,-500.0,0.0003863,8]
[394740412,1763922660864,-41.40076969,0.0003863,8]
[394740413,1763922661361,-458.59923031,0.0003863,8]
[394740414,1763922661371,-506.6471525,0.0003863,8]
[394740415,1763922661381,-500.0,0.0003863,8]
[394740416,1763922661390,-500.0,0.0003863,8]
[394740417,1763922661400,-500.0,0.0003863,8]
[394740418,1763922661410,-500.0,0.0003863,8]
[394740419,1763922661420,-273.4803425,0.0003863,8]
[394740420,1763922661429,-567.96,0.0003863,8]
[394740421,1763922661439,-500.0,0.0003863,8]
[394740422,1763922661448,-500.0,0.0003863,8]
[394740423,1763922661458,-151.0,0.0003863,120]
[394740424,1763922661467,-500.0,0.0003863,8]
[394740425,1763922661477,-500.0,0.0003863,8]
[394740426,1763922661487,-500.0,0.0003863,8]
[394740427,1763922661497,-500.0,0.0003863,8]
[394740428,1763922661508,-500.0,0.0003863,8]
[394740429,1763922661517,-844.45,0.0003863,8]
[394740430,1763922661525,-500.0,0.0003863,8]
[394740431,1763922661534,-151.0,0.0003863,120]
[394740432,1763922661543,-580.47,0.0003863,8]
[394740433,1763922661553,-500.0,0.0003863,8]
[394740434,1763922661563,-669.62,0.0003863,8]
[394740435,1763922661572,-634.04,0.0003863,8]
[394740436,1763922661582,-500.0,0.0003863,8]
[394740437,1763922661591,-500.0,0.0003863,8]
[394740438,1763922661601,-551.33,0.0003863,8]
[394740439,1763922661610,-500.0,0.0003863,8]
[394740440,1763922661622,-152.981153,0.0003863,120]
[394740441,1763922661631,-500.0,0.0003863,8]
[394740442,1763922661641,-744.88,0.0003863,8]
[394740443,1763922661652,-500.0,0.0003863,8]
[394740444,1763922661662,-500.0,0.0003863,8]
[394740445,1763922661671,-500.0,0.0003863,8]
[394740446,1763922661681,-700.75,0.0003863,8]
[394740447,1763922661690,-1065.13,0.0003863,8]
[394740448,1763922661699,-594.21,0.0003863,8]
[394740449,1763922661708,-620.94,0.0003863,8]
[394740450,1763922661718,-503.70246356,0.0003863,8]
[394740451,1763922661729,-500.0,0.0003863,8]
[394740452,1763922661738,-151.0,0.0003863,120]
[394740453,1763922661747,-500.0,0.0003863,8]
[394740454,1763922661757,-554.8,0.0003863,8]
[394740455,1763922661766,-636.1410225,0.0003863,8]
[394740456,1763922661776,-500.0,0.0003863,8]
[394740457,1763922661785,-500.0,0.0003863,8]
[394740458,1763922661794,-500.0,0.0003863,8]
[394740459,1763922661804,-979.89,0.0003863,8]
[394740460,1763922661815,-152.074446,0.0003863,120]
[394740461,1763922661824,-500.0,0.0003863,8]
[394740462,1763922661833,-506.52,0.0003863,8]
[394740463,1763922661842,-500.0,0.0003863,8]
[394740464,1763922661851,-151.0,0.0003863,120]
[394740465,1763922661861,-500.0,0.0003863,8]
[394740466,1763922661871,-500.0,0.0003863,8]
[394740467,1763922661881,-500.0,0.0003863,8]
[394740468,1763922661891,-500.0,0.0003863,8]
[394740469,1763922661900,-500.0,0.0003863,8]
[394740470,1763922661909,-300.0,0.0003863,2]
[394740471,1763922661918,-500.0,0.0003863,8]
[394740472,1763922661928,-637.21353046,0.0003863,8]
[394740473,1763922661937,-500.0,0.0003863,8]
[394740474,1763922661946,-258.19958184,0.0003863,8]
[394740475,1763922661955,-500.0,0.0003863,8]
[394740476,1763922661964,-538.9382474,0.0003863,60]
[394740477,1763922661974,-917.99,0.0003863,8]
[394740478,1763922661984,-740.78,0.0003863,8]
[394740479,1763922661993,-500.0,0.0003863,8]
[394740480,1763922662003,-500.0,0.0003863,8]
[394740481,1763922662012,-500.0,0.0003863,8]
[394740482,1763922662022,-500.0,0.0003863,8]
[394740483,1763922662032,-500.0,0.0003863,8]
[394740484,1763922662041,-500.0,0.0003863,8]
[394740485,1763922662051,-500.0,0.0003863,8]
[394740486,1763922662060,-151.0,0.0003863,30]
[394740487,1763922662069,-500.0,0.0003863,8]
[394740488,1763922662079,-153.900979,0.0003863,30]
[394740489,1763922662088,-500.0,0.0003863,8]
[394740490,1763922662097,-500.0,0.0003863,8]
[394740491,1763922662106,-618.74,0.0003863,8]
[394740492,1763922662115,-500.0,0.0003863,8]
[394740493,1763922662125,-485.716053,0.0003863,8]
[394740494,1763922662134,-500.0,0.0003863,8]
[394740495,1763922662144,-500.0,0.0003863,8]
[394740496,1763922662154,-151.0,0.0003863,120]
[394740497,1763922662163,-151.0,0.0003863,120]
[394740498,1763922662174,-500.0,0.0003863,8]
[394740499,1763922662183,-156.61327,0.0003863,120]
[394740500,1763922662192,-500.0,0.0003863,8]
[394740501,1763922662202,-787.0,0.0003863,8]
[394740502,1763922662216,-500.0,0.0003863,8]
[394740503,1763922662225,-500.0,0.0003863,8]
[394740504,1763922662235,-500.0,0.0003863,8]
[394740505,1763922662244,-500.0,0.0003863,8]
[394740506,1763922662254,-151.0,0.0003863,120]
[394740507,1763922662263,-500.0,0.0003863,8]
[394740508,1763922662274,-706.7,0.0003863,8]
[394740509,1763922662285,-151.0,0.0003863,120]
[394740510,1763922662294,-154.795655,0.0003863,120]
[394740511,1763922662303,-500.0,0.0003863,8]
[394740512,1763922662313,-507.22931579,0.0003863,8]
[394740513,1763922662323,-500.0,0.0003863,8]
[394740514,1763922662333,-151.0,0.0003863,120]
[394740515,1763922662343,-500.0,0.0003863,8]
[394740516,1763922662352,-500.0,0.0003863,8]
[394740517,1763922662362,-500.0,0.0003863,8]
[394740518,1763922662372,-151.0,0.0003863,120]
[394740519,1763922662381,-500.0,0.0003863,8]
[394740520,1763922662391,-500.0,0.0003863,8]
[394740521,1763922662400,-159.148597,0.0003863,120]
[394740522,1763922662411,-326.206516,0.0003863,8]
[394740523,1763922662421,-151.0,0.0003863,120]
[394740524,1763922662431,-500.0,0.0003863,8]
[394740525,1763922662440,-500.0,0.0003863,8]
[394740526,1763922662449,-579.296223,0.0003863,8]
[394740527,1763922662459,-500.0,0.0003863,8]
[394740528,1763922662469,-676.59,0.0003863,8]
[394740529,1763922662479,-500.0,0.0003863,8]
[394740530,1763922662489,-500.0,0.0003863,8]
[394740531,1763922662498,-500.0,0.0003863,8]
[394740532,1763922662509,-894.63,0.0003863,8]
[394740533,1763922662519,-500.0,0.0003863,8]
[394740534,1763922662529,-907.75,0.0003863,8]
[394740535,1763922662539,-500.0,0.0003863,8]
[394740536,1763922662550,-500.0,0.0003863,8]
[394740537,1763922662560,-500.0,0.0003863,8]
[394740538,1763922662570,-500.0,0.0003863,8]
[394740539,1763922662580,-500.0,0.0003863,8]
[394740540,1763922662591,-810.45,0.0003863,8]
[394740541,1763922662600,-500.0,0.0003863,8]
[394740542,1763922662611,-500.0,0.0003863,8]
[394740543,1763922662621,-500.0,0.0003863,8]
[394740544,1763922662630,-500.0,0.0003863,8]
[394740545,1763922662640,-500.0,0.0003863,8]
[394740546,1763922662650,-500.0,0.0003863,8]
[394740547,1763922662659,-500.0,0.0003863,8]
[394740548,1763922662669,-500.0,0.0003863,8]
[394740549,1763922662678,-500.0,0.0003863,8]
[394740550,1763922662687,-500.9,0.0003863,8]
[394740551,1763922662697,-500.0,0.0003863,8]
[394740552,1763922662707,-500.0,0.0003863,8]
[394740553,1763922662716,-643.04,0.0003863,8]
[394740554,1763922662726,-712.0,0.0003863,8]
[394740555,1763922662736,-551.13,0.0003863,8]
[394740556,1763922662745,-151.0,0.0003863,120]
[394740557,1763922662755,-259.16659292,0.0003863,8]
[394740558,1763922662765,-500.0,0.0003863,8]
[394740559,1763922662775,-500.0,0.0003863,8]
[394740560,1763922662785,-500.0,0.0003863,8]
[394740561,1763922662794,-500.0,0.0003863,8]
[394740562,1763922662804,-500.0,0.0003863,8]
[394740563,1763922662814,-500.0,0.0003863,8]
[394740564,1763922662823,-500.0,0.0003863,8]
[394740565,1763922662833,-500.0,0.0003863,8]
[394740566,1763922662843,-500.0,0.0003863,8]
[394740567,1763922662853,-500.0,0.0003863,8]
[394740568,1763922662863,-569.35,0.0003863,8]
[394740569,1763922662872,-738.38,0.0003863,8]
[394740570,1763922662881,-500.0,0.0003863,8]
[394740571,1763922662891,-500.0,0.0003863,8]
[394740572,1763922662901,-500.0,0.0003863,8]
[394740573,1763922662911,-500.0,0.0003863,8]
[394740574,1763922662921,-500.0,0.0003863,8]
[394740575,1763922662930,-500.0,0.0003863,8]
[394740576,1763922662940,-500.0,0.0003863,8]
[394740577,1763922662950,-541.48665273,0.0003863,8]
[394740578,1763922662960,-500.0,0.0003863,8]
[394740579,1763922662969,-500.0,0.0003863,8]
[394740580,1763922662979,-199.89817462,0.0003863,8]
[394740581,1763922662989,-135.05758204,0.0003863,90]
[394740582,1763922663093,-15.94241796,0.0003863,90]
[394740583,1763922663103,-500.0,0.0003863,8]
[394740584,1763922663112,-500.0,0.0003863,8]
[394740585,1763922663122,-417.08807966,0.0003863,8]
[394740586,1763922663131,-500.0,0.0003863,8]
[394740587,1763922663141,-500.0,0.0003863,8]
[394740588,1763922663150,-500.0,0.0003863,8]
[394740589,1763922663160,-500.0,0.0003863,8]
[394740590,1763922663169,-537.98,0.0003863,8]
[394740591,1763922663179,-500.0,0.0003863,8]
[394740592,1763922663189,-529.41718274,0.0003863,8]
[394740593,1763922663198,-264.08046186,0.0003863,8]
[394740594,1763922663213,-500.0,0.0003863,8]
[394740595,1763922663223,-500.0,0.0003863,8]
[394740596,1763922663233,-500.0,0.0003863,8]
[394740597,1763922663243,-500.0,0.0003863,8]
[394740598,1763922663257,-517.21,0.0003863,8]
[394740599,1763922663277,-550.32,0.0003863,8]
[394740600,1763922663288,-500.0,0.0003863,8]
[394740601,1763922663297,-387.16859246,0.0003863,8]
[394740602,1763922663307,-500.0,0.0003863,8]
[394740603,1763922663316,-500.0,0.0003863,8]
[394740604,1763922663326,-534.61,0.0003863,8]
[394740605,1763922663335,-523.34187047,0.0003863,8]
[394740606,1763922663345,-600.34,0.0003863,8]
[394740607,1763922663356,-500.0,0.0003863,8]
[394740608,1763922663366,-174.47674772,0.0003863,8]
[394740609,1763922663376,-500.0,0.0003863,8]
[394740610,1763922663385,-500.0,0.0003863,8]
[394740611,1763922663396,-538.27,0.0003863,8]
[394740612,1763922663405,-605.58549801,0.0003863,8]
[394740613,1763922663415,-582.09409042,0.0003863,8]
[394740614,1763922663425,-500.0,0.0003863,8]
[394740615,1763922663435,-500.0,0.0003863,8]
[394740616,1763922663444,-500.0,0.0003863,8]
[394740617,1763922663453,-500.0,0.0003863,8]
[394740618,1763922663463,-500.0,0.0003863,8]
[394740619,1763922663473,-500.0,0.0003863,8]
[394740620,1763922663483,-500.0,0.0003863,8]
[394740621,1763922663492,-500.0,0.0003863,8]
[394740622,1763922663502,-500.0,0.0003863,8]
[394740623,1763922663512,-500.0,0.0003863,8]
[394740624,1763922663521,-500.0,0.0003863,8]
[394740625,1763922663530,-883.77,0.0003863,8]
[394740626,1763922663540,-500.0,0.0003863,8]
[394740627,1763922663549,-598.63,0.0003863,8]
[394740628,1763922663559,-500.0,0.0003863,8]
[394740629,1763922663568,-151.0,0.0003863,120]
[394740630,1763922663578,-500.0,0.0003863,8]
[394740631,1763922663587,-223.324377,0.0003863,8]
[394740632,1763922663597,-836.97,0.0003863,8]
[394740633,1763922663607,-500.0,0.0003863,8]
[394740634,1763922663617,-343.68469167,0.0003863,8]
[394740635,1763922663627,-500.0,0.0003863,8]
[394740636,1763922663636,-583.6,0.0003863,8]
[394740637,1763922663646,-500.0,0.0003863,8]
[394740638,1763922663657,-500.0,0.0003863,8]
[394740639,1763922663666,-544.92,0.0003863,2]
[394740640,1763922663676,-500.0,0.0003863,8]
[394740641,1763922663686,-500.0,0.0003863,8]
[394740642,1763922663696,-160.82276945,0.0003863,8]
[394740643,1763922663705,-500.0,0.0003863,8]
[394740644,1763922663715,-500.0,0.0003863,8]
[394740645,1763922663725,-541.35,0.0003863,8]
[394740646,1763922663736,-500.0,0.0003863,8]
[394740647,1763922663745,-670.92,0.0003863,8]
[394740648,1763922663755,-500.0,0.0003863,8]
[394740649,1763922663765,-835.78,0.0003863,8]
[394740650,1763922663774,-500.0,0.0003863,8]
[394740651,1763922663783,-500.0,0.0003863,8]
[394740652,1763922663792,-500.0,0.0003863,8]
[394740653,1763922663801,-697.66,0.0003863,8]
[394740654,1763922663810,-500.0,0.0003863,8]
[394740655,1763922663819,-1002.69,0.0003863,8]
[394740656,1763922663828,-500.0,0.0003863,8]
[394740657,1763922663837,-500.0,0.0003863,8]
[394740658,1763922663847,-589.41,0.0003863,8]
[394740659,1763922663856,-500.0,0.0003863,8]
[394740660,1763922663865,-500.0,0.0003863,8]
[394740661,1763922663874,-500.0,0.0003863,8]
[394740662,1763922663884,-500.0,0.0003863,8]
[394740663,1763922663893,-500.0,0.0003863,8]
[394740664,1763922663902,-500.0,0.0003863,8]
[394740665,1763922663912,-606.57,0.0003863,8]
[394740666,1763922663923,-500.0,0.0003863,8]
[394740667,1763922663933,-500.0,0.0003863,8]
[394740668,1763922663943,-613.02,0.0003863,8]
[394740669,1763922663952,-500.0,0.0003863,8]
[394740670,1763922663962,-500.0,0.0003863,8]
[394740671,1763922663973,-175.00802525,0.0003863,8]
[394740672,1763922663983,-500.0,0.0003863,8]
[394740673,1763922663993,-500.0,0.0003863,8]
[394740674,1763922664003,-500.0,0.0003863,8]
[394740675,1763922664016,-500.0,0.0003863,8]
[394740676,1763922664026,-500.0,0.0003863,8]
[394740677,1763922664036,-500.0,0.0003863,8]
[394740678,1763922664046,-500.0,0.0003863,8]
[394740679,1763922664056,-500.0,0.0003863,8]
[394740680,1763922664066,-500.0,0.0003863,8]
[394740681,1763922664076,-500.0,0.0003863,8]
[394740682,1763922664085,-500.0,0.0003863,8]
[394740683,1763922664095,-523.9,0.0003863,8]
[394740684,1763922664104,-500.0,0.0003863,2]
[394740685,1763922664114,-500.0,0.0003863,8]
[394740686,1763922664123,-500.0,0.0003863,8]
[394740687,1763922664132,-174.2582095,0.0003863,8]
[394740688,1763922664142,-500.0,0.0003863,8]
[394740689,1763922664152,-500.0,0.0003863,8]
[394740690,1763922664161,-504.21,0.0003863,8]
[394740691,1763922664171,-417.21681353,0.0003863,8]
[394740692,1763922664186,-82.78318647,0.0003863,8]
[394740693,1763922664195,-594.13,0.0003863,8]
[394740694,1763922664208,-500.0,0.0003863,8]
[394740695,1763922664217,-500.0,0.0003863,8]
[394740696,1763922664227,-500.0,0.0003863,8]
[394740697,1763922664236,-500.0,0.0003863,8]
[394740698,1763922664247,-500.0,0.0003863,8]
[394740699,1763922664257,-130.3007161,0.0003863,8]
[394740700,1763922664269,-292.0,0.0003863,8]
[394740701,1763922664281,-419.4292839,0.0003863,8]
[394740702,1763922664292,-433.8991913,0.0003863,8]
[394740703,1763922664304,-70.66629135,0.0003863,8]
[394740704,1763922664314,-229.69367779,0.0003863,8]
[394740705,1763922664354,-270.30632221,0.0003863,8]
[394740706,1763922664364,-500.0,0.0003863,8]
[394740707,1763922664374,-500.0,0.0003863,8]
[394740708,1763922664384,-362.8371306,0.0003863,8]
[394740709,1763922664395,-459.33174861,0.0003863,8]
[394740710,1763922664406,-1330.08239876,0.0003863,8]
[394740711,1763922664417,-6166.05872203,0.0003863,8]
[394740712,1763922664556,-500.0,0.0003863,8]
[394740713,1763922664568,-314.00689429,0.0003863,8]
[394740714,1763922664594,-841.56310571,0.0003863,8]
[394740715,1763922664604,-500.0,0.0003863,8]
[394740716,1763922664614,-500.0,0.0003863,8]
[394740717,1763922664625,-500.0,0.0003863,8]
[394740718,1763922664636,-500.0,0.0003863,8]
[394740719,1763922664645,-500.0,0.0003863,8]
[394740720,1763922664655,-500.0,0.0003863,8]
[394740721,1763922664664,-500.0,0.0003863,8]
[394740722,1763922664676,-500.0,0.0003863,8]
[394740723,1763922664686,-508.83,0.0003863,8]
[394740724,1763922664696,-524.54,0.0003863,8]
[394740725,1763922664705,-500.0,0.0003863,8]
[394740726,1763922664715,-716.46,0.0003863,8]
[394740727,1763922664735,-572.09,0.0003863,8]
[394740728,1763922664746,-500.0,0.0003863,8]
[394740729,1763922664756,-1307.24,0.0003863,8]
[394740730,1763922664767,-877.28,0.0003863,8]
[394740731,1763922664776,-500.0,0.0003863,8]
[394740732,1763922664786,-500.0,0.0003863,8]
[394740733,1763922664796,-1197.6,0.0003863,8]
[394740734,1763922664805,-500.0,0.0003863,8]
[394740735,1763922664815,-500.0,0.0003863,8]
[394740736,1763922664825,-741.68,0.0003863,8]
[394740737,1763922664835,-500.0,0.0003863,8]
[394740738,1763922664846,-757.2,0.0003863,8]
[394740739,1763922664856,-711.6,0.0003863,8]
[394740740,1763922664866,-866.22,0.0003863,8]
[394740741,1763922664877,-500.0,0.0003863,8]
[394740742,1763922664888,-500.0,0.0003863,8]
[394740743,1763922664897,-500.0,0.0003863,8]
[394740744,1763922664907,-500.0,0.0003863,8]
[394740745,1763922664917,-960.0,0.0003863,8]
[394740746,1763922664929,-500.0,0.0003863,8]
[394740747,1763922664940,-500.0,0.0003863,8]
[394740748,1763922664951,-603.78,0.0003863,8]
[394740749,1763922664962,-500.0,0.0003863,8]